Cogmind - Beta 14 @@@ ROGUE MODE // 2024.09.13 @ 14:51:11 Player: Mallow Result: Destroyed by YI-UF0 with YI-UF0's Doublenader Performance ------------- Evolutions (0) 0 Regions Visited (2) 400 Robots Destroyed (22) 110 Value Destroyed (434) 434 Prototype IDs (0) 0 Alien Tech Used (0) 0 Bonus (0) 0 TOTAL SCORE: 944 Bonus ------- None Cogmind --------- Core Integrity 0/250 Matter 250/300 Energy 96/100 System Corruption 3% Temperature Cool (0) Movement Core (50) Location -10/Mines Parts ------- > --- POWER (1) -------- (None) > --- PROPULSION (2) --- (None) > --- UTILITY (2) ------ (None) > --- WEAPON (2) ------- Mining Claw > --- INVENTORY (5) ---- Light Treads Structural Scanner Visual Processing Unit Grenade Launcher Hammer Peak State ------------ > --- POWER ------------ Ion Engine > --- PROPULSION ------- Light Treads Light Treads > --- UTILITY ---------- Small Storage Unit Sensor Array > --- WEAPON ----------- Grenade Launcher Mining Claw > --- INVENTORY -------- Light Ion Engine Light Treads Light Treads Structural Scanner Visual Processing Unit Terrain Scanner Terrain Scan Processor Hammer [Rating: 8] Favorites ----------- Power Ion Engine Engine Ion Engine Propulsion Light Treads Treads Light Treads Utility Small Storage Unit Device Sensor Array Storage Small Storage Unit Processor Targeting Computer Weapon Grenade Launcher Ballistic Gun Assault Rifle Launcher Grenade Launcher Impact Weapon Hammer Slashing Weapon Mining Claw Build | -11 -10 -10 ------- Run | Yrd Mat Min Slots Evolved . | . . . Power . | . . . Propulsion . | . . . Utility . | . . . Weapon . | . . . Parts Attached 21 | 6 13 2 Power 2 | 1 . 1 Engine 2 | 1 . 1 Core . | . . . Reactor . | . . . Propulsion 6 | 2 3 1 Treads 6 | 2 3 1 Leg . | . . . Wheel . | . . . Hover . | . . . Flight . | . . . Utility 3 | 1 2 . Device 1 | . 1 . Storage 1 | 1 . . Processor 1 | . 1 . Hackware . | . . . Protection . | . . . Artifact . | . . . Weapon 10 | 2 8 . Energy Gun . | . . . Energy Cannon . | . . . Ballistic Gun 2 | 2 . . Ballistic Cannon . | . . . Launcher 4 | . 4 . Special Weapon . | . . . Impact Weapon 1 | . 1 . Slashing Weapon 3 | . 3 . Piercing Weapon . | . . . Special Melee Weapon . | . . . Unidentified Prototypes . | . . . Parts Lost 8 | . 1 7 Power 2 | . . 2 Propulsion 2 | . . 2 Utility 2 | . . 2 Weapon 2 | . 1 1 Highest Loss Streak 6 | . 1 6 To Critical Strikes . | . . . Average Slot Usage (%) 97 | . 97 95 Engine 13 | . 14 12 Treads 27 | . 27 27 Device 4 | . 4 12 Storage 13 | . 14 13 Processor 7 | . 8 . Ballistic Gun 6 | . 6 . Launcher 10 | . 9 13 Impact Weapon 4 | . 4 . Slashing Weapon 7 | . 6 14 Peak Build Rating 8 | 6 8 8 Average Rating 6 | 4 6 7 On Entrance 4 | . 6 8 Naked Turns . | . . . Heaviest Build 16 | 14 16 16 Greatest Support 40 | 40 40 40 Greatest Overweight (x) 4 | 3 4 . Average Overweight (x) . | . . . Largest Inventory Capacity 8 | 8 8 8 Average Capacity 7 | 7 8 7 Most Carried 8 | . 8 8 Average Carried 4 | . 4 7 Final Capacity 8 | 8 8 5 Final Carried 8 | . 8 5 Class Distribution -------------------- 100% | Mutant Dominant Class ---------------- Mutant | -10/Materials Mutant | -10/Mines Resources | -11 -10 -10 ----------- Run | Yrd Mat Min Matter Collected 617 | 188 352 77 Remotely . | . . . Salvage Created 296 | . 270 26 Parts 32 | . 25 7 Haulers Intercepted . | . . . Recyclers Shooed . | . . . Parts Field Recycled . | . . . Retrieved Matter . | . . . Parts Self-Destructed . | . . . Prevented . | . . . Kills | -11 -10 -10 ------- Run | Yrd Mat Min Combat Hostiles Destroyed 15 | . 12 3 Melee 3 | . 2 1 AOE 12 | . 10 2 Classes Destroyed 6 | . 5 1 Worker 1 | . . 1 Builder 3 | . 3 . Operator 2 | . 2 . Watcher 1 | . 1 . Swarmer 10 | . 7 3 Grunt 5 | . 5 . Best Kill Streak 4 | . 3 4 Combat Bots Only 3 | . 3 3 Max Kills in Single Turn 2 | . 2 2 Gunslinging . | . . . Exploded 2 | . 2 1 Melee 1 | . 1 1 Uniques/NPCs Destroyed . | . . . Combat | -11 -10 -10 -------- Run | Yrd Mat Min Hostile Shots Fired 80 | . 58 22 Missed 23 | . 17 6 Damage Taken 1211 | . 551 660 Core 268 | . 105 163 Absorbed by Shields . | . . . Core Remaining (%) 100 | 100 . . Volleys Fired 37 | . 31 6 Largest 2 | . 2 1 Hottest 50 | . 50 30 Shots Fired 43 | . 37 6 Gun 19 | . 19 . Cannon . | . . . Launcher 24 | . 18 6 Special . | . . . Kinetic 19 | . 19 . Thermal . | . . . Explosive 24 | . 18 6 Electromagnetic . | . . . Robot Hit Streak 4 | . 4 4 Robot Miss Streak 2 | . 2 1 Penetration Max . | . . . Secondary Targets . | . . . Shots Hit Robots 35 | . 29 6 Core Hits 25 | . 20 5 Critical Kills 1 | . 1 . Critical Parts Destroyed 3 | . 3 . Critical Strikes 4 | . 4 . Smash 4 | . 4 . Melee Attacks 33 | . 32 1 Impact 15 | . 15 . Slashing 18 | . 17 1 Piercing . | . . . Sneak Attacks 3 | . 3 . Combat Hostiles . | . . . Follow-up Attacks . | . . . Damage Inflicted 1426 | . 1234 192 Guns 146 | . 146 . Cannons . | . . . Explosions 956 | . 787 169 Melee 324 | . 301 23 Ramming . | . . . Kinetic 146 | . 146 . Thermal . | . . . Explosive 956 | . 787 169 Electromagnetic . | . . . Impact 204 | . 204 . Slashing 120 | . 97 23 Piercing . | . . . Highest Corruption 3 | . . 3 Average Corruption 3 | . . 3 Corruption Purged . | . . . Corruption Blocked . | . . . Effects 1 | . . 1 Data Loss (minor) 1 | . . 1 Overload Shots . | . . . Overflow Damage 172 | . 172 . Projectiles . | . . . Explosions . | . . . Melee 172 | . 172 . Knockbacks . | . . . Impact . | . . . Kinetic . | . . . Secondary . | . . . Self-Inflicted Damage 232 | . 198 34 Shots 8 | . 7 1 Rammed . | . . . Targets Rammed . | . . . Kicked . | . . . Crushed . | . . . Highest Temperature 4 | . 4 . Average Temperature 1 | . 1 . Received Heat Transfer 48 | . 48 . Siege Activations . | . . . Robots Corrupted . | . . . Combat Hostiles . | . . . Parts Fried 5 | . 5 . Impact Corruptions 6 | . 6 . Robots Melted . | . . . Combat Hostiles . | . . . Parts Melted . | . . . Heat Transferred . | . . . Parts Sabotaged . | . . . Parts Stolen . | . . . Parts Stripped . | . . . Power Chain Reactions . | . . . Alert | -11 -10 -10 ------- Run | Yrd Mat Min Peak Influence 300 | . 300 289 Initial 86 | . . 86 Average 162 | . 172 140 Maximum Alert Level 1 | . 1 1 Low Security (%) 53 | 100 49 70 Level 1 46 | . 50 29 Level 2 . | . . . Level 3 . | . . . Level 4 . | . . . Level 5 . | . . . High Security . | . . . Max Security . | . . . Squads Dispatched 3 | . 3 . Investigation 1 | . 1 . Extermination . | . . . Reinforcement 2 | . 2 . Assault . | . . . Garrison . | . . . Intercept . | . . . Searches Triggered . | . . . Construction Impeded . | . . . Haulers Reinforced . | . . . Active Scanning Responses . | . . . Cargo Convoy Interrupts . | . . . Stealth | -11 -10 -10 --------- Run | Yrd Mat Min Distress Signals 2 | . 1 1 Communications Jammed . | . . . Distress Signals . | . . . Times Spotted 29 | . 25 4 Peak Tracking Total 6 | . 6 3 Tactical Retreats 2 | . 2 . Traps | -11 -10 -10 ------- Run | Yrd Mat Min Traps Triggered 2 | . 2 . Indirectly . | . . . Trap Hack Attempts . | . . . Triggered . | . . . Disarmed . | . . . Reprogrammed . | . . . Reused . | . . . Traps Extracted . | . . . Installed . | . . . Triggered . | . . . Machines | -11 -10 -10 ---------- Run | Yrd Mat Min Machines Disabled 10 | . 4 6 Max in Single Turn 6 | . 2 6 Machines Repaired . | . . . Machines Dismantled . | . . . Machines Sabotaged . | . . . Overloaded Fab Kills . | . . . Hacking | -11 -10 -10 --------- Run | Yrd Mat Min Machines Accessed 4 | . 4 . Terminals 3 | . 3 . Fabricators . | . . . Repair Stations . | . . . Recycling Units 1 | . 1 . Scanalyzers . | . . . Garrison Access . | . . . Total Hacks 13 | . 13 . Successful 7 | . 7 . Failed 6 | . 6 . Catastrophic 1 | . 1 . Database Lockouts . | . . . Manual 5 | . 5 . Terminals 12 | . 12 . Fabricators . | . . . Repair Stations . | . . . Recycling Units 1 | . 1 . Scanalyzers . | . . . Garrison Access . | . . . Terminal Hacks 6 | . 6 . Emergency Access Points 1 | . 1 . Alert Level 2 | . 2 . Locate Traps 1 | . 1 . Hauler Manifests 1 | . 1 . Zone Layout 1 | . 1 . Fabricator Hacks . | . . . Repair Station Hacks . | . . . Recycling Unit Hacks 1 | . 1 . Report Inventory 1 | . 1 . Scanalyzer . | . . . Garrison Access Hacks . | . . . Unauthorized Hacks . | . . . Terminals . | . . . Fabricators . | . . . Repair Stations . | . . . Recycling Units . | . . . Scanalyzers . | . . . Garrison Access . | . . . Data Cores Recovered . | . . . Used . | . . . Hacking Detections 2 | . 2 . Full Trace Events . | . . . Feedback Events . | . . . Feedback Blocked . | . . . Robot Schematics Acquired . | . . . Robots Built . | . . . Authchips . | . . . Time . | . . . Total Robot Build Rating . | . . . Part Schematics Acquired . | . . . Parts Built . | . . . Authchips . | . . . Time . | . . . Total Part Build Rating . | . . . Parts Repaired . | . . . Time . | . . . Parts Recycled . | . . . Recycled Matter . | . . . Retrieved Matter . | . . . Retrieved Components . | . . . Parts Scanalyzed . | . . . Part Schematics Acquired . | . . . Parts Damaged . | . . . Bothacking | -11 -10 -10 ------------ Run | Yrd Mat Min Used RIF Installer . | . . . Robots Hacked . | . . . Non-combat . | . . . Combat . | . . . Robot Hacks Applied . | . . . Relay Couplers Released . | . . . Fabnet Peak Effective % . | . . . Robots Rewired . | . . . Allies Hacked . | . . . Hacks Repelled . | . . . Allies | -11 -10 -10 -------- Run | Yrd Mat Min Total Allies . | . . . Largest Group . | . . . Highest-Rated Group . | . . . Highest-Rated Ally . | . . . Total Orders . | . . . Ally Attacks . | . . . Total Damage . | . . . Kills . | . . . Allies Corrupted . | . . . Allies Melted . | . . . Intel | -11 -10 -10 ------- Run | Yrd Mat Min Robot Analysis Total . | . . . Derelict Logs Recovered 1 | . . 1 Drone Launches . | . . . Drone Recoveries . | . . . Exploration | -11 -10 -10 ------------- Run | Yrd Mat Min Turns Passed 2241 | 91 1946 204 Spaces Moved 1099 | 54 933 112 Core 15 | 8 3 4 Treads 1084 | 46 930 108 Legs . | . . . Wheels . | . . . Hover . | . . . Flight . | . . . Fastest Speed 50 | 50 160 50 Average Speed 159 | 153 160 156 Slowest Speed 250 | 200 250 160 Overloaded Moves . | . . . Propulsion Burnouts . | . . . Robots Hopped . | . . . Cave-ins Triggered 1 | . . 1 Exploration Rate (%) 42 | 4 98 24 Regions Visited 2 Branch Regions 1 Pre-discovered Areas . | . . . Known Exits Taken . | . . . Unknown Exits Taken 2 | 1 1 . Scrap Searched 1 | . . 1 Spaces Dug 34 | . 34 . Terrain Destroyed 191 | . 137 54 Melee 6 | . 6 . Projectile . | . . . AOE 185 | . 131 54 Terrain Rammed . | . . . Walls Destroyed . | . . . Machines Disabled . | . . . Actions | -11 -10 -10 --------- Run | Yrd Mat Min Total 1487 | 59 1294 134 Wait 273 | . 263 10 Move 1097 | 53 932 112 Hop . | . . . Pick Up 17 | . 16 1 Fast Attach 6 | 6 . . Attach 14 | . 12 2 Detach 6 | . 6 . Swap 1 | . 1 . Drop 5 | . 3 2 Fire 37 | . 31 6 Melee 31 | . 30 1 Ram . | . . . Kick . | . . . Crush . | . . . Escape Stasis . | . . . Rewire . | . . . Trap . | . . . Miscellaneous . | . . . Route ------- -11/Scrapyard -10/Materials (discovered 5 exits: [*Mat x3] / [*Min x2]) -10/Mines (discovered 1 exit: [*Mat]) History --------- Turn | Location | Event 12 | -11/Scrapyard | Discovered new exit (range 15) 92 | -11/Scrapyard | Entered Materials 177 | -10/Materials | Discovered new exit (range 4) 304 | -10/Materials | Discovered new exit (range 13) 316 | -10/Materials | Build established: Mutant 543 | -10/Materials | Discovered new exit (range 16) 735 | -10/Materials | Discovered new exit (range 4) 950 | -10/Materials | Discovered new exit (range 10) 2038 | -10/Materials | Entered Mines 2061 | -10/Mines | Learned Materials interactive machine intel 2118 | -10/Mines | YI-UF0 nonchalantly dropped a Grenade Launcher on the ground 2182 | -10/Mines | Discovered new exit (range 9) 2184 | -10/Mines | Core integrity fell below 50% 2187 | -10/Mines | Crushed by falling debris 2227 | -10/Mines | Core integrity fell below 20% 2242 | -10/Mines | Destroyed by YI-UF0 with YI-UF0's Doublenader Last Messages --------------- R-06 Scavenger collects Lgt. Ion Engine. K-01 Serf collects debris. U-05 Engineer lays Concrete. R-06 Scavenger collects Lgt. Ion Engine. System corrupted: Component data lost. Sensor Array destroyed. Lgt. Treads destroyed. The unstable cave ceiling collapses. Lgt. Ion Engine destroyed. The unstable cave ceiling collapses. YI-UF0 mumbles something. Lgt. Treads destroyed. Sml. Storage Unit destroyed. Grenade Launcher destroyed. YI-UF0: "WHAAM!" R-06 Scavenger destroyed. YI-UF0 mumbles something. The unstable cave ceiling collapses. Dropped Lgt. Treads. The unstable cave ceiling collapses. Map ----- +----------------------------------------------------+ | ?????????????????????????????? | | ?????????????????????????????? | | ?????????????????????????????? | | ?????????????????????????????? | | ???????????????????????#?????? | | ?????????????????????? ?????? | | ?????????????????????? ?????? | | ?????????????????????? ##???? | | ??????????????????????? ##??? | | ??????????????????????? ##?? | | ??????????????#???????? #?? | | ?????????????? ???????# ??? | | ????????????? ##????# #??? | | ????????????? ##### #??? | | ???????????? % # #??? | | ????????????# # ##?? | | ???????????? # ##? | | ??????????? g ## | | ????########## # | | ????# # # | | ????# = | | ##??# #### #### !% | | #??# #??# ##??# [ | | #### #??# #?#### | | #??# ### | | #??# ## ## @ | | #######??## ### ## ## | | ##?????????###### ## ##? | | ????????????????# #?? | | ????????????????# #?? | | ????????????????## ######?? | | ????????????????## ##?????? | | ????????????????# ##????? | | ????????????????# #????? | | ????????????????## = #????? | | ?????????????????# #????? | | ?????????????????# ##????? | | ?????????????????# ####?????? | | ?????????????????# #???????? | | ?????????????????## #???????? | | ????????????????? #????? | | ??????????????? """"#?? | | ?????????????# "#? | | ?????????????## "#? | | ??????????????# < [ "#? | | ?????????????? "#? | | ?????????????## ##? | | ??????????????# "?? | | ??????????????# "#? | | ??????????????# #? | +----------------------------------------------------+ Best States ------------- Heat Dissipation 25 Energy Generation 10 Energy Capacity 250 Matter Stores 300 Matter Capacity 300 Sight Range 16 Robot Scan Range 14 Terrain Scan Density 10 Evasion (%) 40 Targeting Accuracy 5 Recoil Reduction 2 Item Schematics ----------------- None Robot Schematics ------------------ None Fabricated ------------ Nothing Alien Tech Used ----------------- None Achievements -------------- None Challenges ------------ None Game ------ Seed ProtonDecoderArticulator Manual? 0 Play Time 00:16:46 Cumulative 20.0 hours Start 2024.09.13 @ 14:35:47 End 2024.09.13 @ 14:51:11 Sessions 1 Manual Loads 0 Difficulty Rogue Special Mode None Game No. 38 Rogue 38 Adventurer 0 Explorer 0 Win Type - Total 0 Types 0/0/0/0/0/0/0/0/0 Lore% 10 Gallery% 25 Achievement% 19 Wizard Run 0 Options --------- Layout 1 ASCII 0 Keyboard 0 Movement Arrows Keybinds 0 Fullscreen 2 Font 24/Smallcaps Map View 50x35 Zoom Use 52% Tactical HUD 0 Map Filters NONE Filters NONE Steam 1 RUN: 271233cf-abde-4aec-b2b6-3fe38bf0c7a5